[Event "SVK ECo-C Extraliga 2021-22"]
[Site "Slovakia"]
[Date "2022.03.12"]
[Round "5.4"]
[White "Manik, Mikulas"]
[Black "Tropp, Lukas"]
[Result "1-0"]
[ECO "C63"]
[WhiteElo "2357"]
[BlackElo "2148"]
[Annotator "RC"]
[PlyCount "41"]
[EventDate "2021.10.21"]
[EventType "team-tourn"]
[EventCountry "SVK"]
[SourceTitle "playchess.com"]
[Source "ChessBase"]
[SourceQuality "1"]
[TimeControl "40/5400+30:1800+30"]

1. e4 {[%emt 0:02:43]} e5 {[%emt 0:00:05]} 2. Nf3 {[%emt 0:00:12]} Nc6 {[%emt 0:00:05]} 3. Bb5 {[%emt 0:00:09]} f5 {[%emt 0:01:45]} 4. d3 {[%emt 0:04:06]} fxe4 {[%emt 0:00:17]} 5. dxe4 {[%emt 0:00:02]} Nf6 {[%emt 0:00:21]} 6. O-O {[%emt 0:00:11]} Bc5 {[%emt 0:07:09]} 7. Bxc6 {[%emt 0:01:11]} bxc6 {[%emt 0:00:27]} 8. Nxe5 {[%emt 0:00:45]} O-O {[%emt 0:01:21]} 9. Nc3 {[%emt 0:14:07]} Re8 {[%emt 0:06:39]} 10. Bf4 {[%emt 0:15:54]} d6 {[%emt 0:21:42]} 11. Nxc6 {[%emt 0:18:23]} Qd7 {[%emt 0:01:04]} 12. e5 {[%emt 0:03:35]} Qxc6 {[%emt 0:35:53]} 13. exf6 {[%emt 0:00:25]} Bb7 {[%emt 0:04:49]} 14. Qg4 {[%emt 0:00:40]} g6 {[%emt 0:00:05]} 15. Rad1 {[%emt 0:18:50]} Kf7 {[%emt 0:05:29]} 16. Kh1 {[%emt 0:05:27]} h5 {[%emt 0:07:22]} 17. Qg5 {[%emt 0:01:05]} Re6 {[%emt 0:02:51]} 18. Nd5 {[%emt 0:04:09]} Rh8 {[%emt 0:01:03]} 19. Ne7 {[%emt 0:00:19]} Qe4 {[%emt 0:00:47]} 20. f3 {[%emt 0:00:11]} Qxc2 {[%emt 0:00:07]} 21. Rd2 {[%emt 0:00:12]} 1-0

[Event "SVK ECo-C Extraliga 2021-22"]
[Site "Slovakia"]
[Date "2022.03.12"]
[Round "5.6"]
[White "Pacher, Milan"]
[Black "Zvarik, Martin"]
[Result "1-0"]
[ECO "C79"]
[WhiteElo "2387"]
[BlackElo "2227"]
[Annotator "RC"]
[PlyCount "111"]
[EventDate "2021.10.21"]
[EventType "team-tourn"]
[EventCountry "SVK"]
[SourceTitle "playchess.com"]
[Source "ChessBase"]
[SourceQuality "1"]
[TimeControl "40/5400+30:1800+30"]

1. e4 {[%emt 0:00:03]} e5 {[%emt 0:00:42]} 2. Nf3 {[%emt 0:00:03]} Nc6 {[%emt 0:00:23]} 3. Bb5 {[%emt 0:00:18]} a6 {[%emt 0:00:17]} 4. Ba4 {[%emt 0:00:02]} d6 {[%emt 0:00:48]} 5. O-O {[%emt 0:00:22]} Nf6 {[%emt 0:00:46]} 6. d4 {[%emt 0:02:43]} exd4 {[%emt 0:01:39]} 7. Nxd4 {[%emt 0:00:51]} Bd7 {[%emt 0:00:07]} 8. Bxc6 {[%emt 0:00:26]} bxc6 {[%emt 0:01:06]} 9. Re1 {[%emt 0:07:01]} Be7 {[%emt 0:00:53]} 10. b3 {[%emt 0:00:26]} O-O {[%emt 0:01:48]} 11. Bb2 {[%emt 0:00:05]} c5 {[%emt 0:08:10]} 12. Nf5 {[%emt 0:00:37]} Bxf5 {[%emt 0:02:27]} 13. exf5 {[%emt 0:00:03]} d5 {[%emt 0:00:38]} 14. Nd2 {[%emt 0:03:17]} Re8 {[%emt 0:11:36]} 15. Qf3 {[%emt 0:01:06]} c6 {[%emt 0:03:21]} 16. c4 {[%emt 0:02:25]} Bf8 {[%emt 0:13:36]} 17. Rxe8 {[%emt 0:04:12]} Nxe8 {[%emt 0:00:49]} 18. Re1 {[%emt 0:00:06]} Ra7 {[%emt 0:03:30]} 19. Nf1 {[%emt 0:01:26]} Re7 {[%emt 0:03:18]} 20. Rd1 {[%emt 0:01:28]} Rd7 {[%emt 0:03:54]} 21. g4 {[%emt 0:04:19]} Be7 {[%emt 0:03:17]} 22. Ne3 {[%emt 0:02:57]} Bf6 {[%emt 0:08:11]} 23. Ba3 {[%emt 0:04:07]} Bd4 {[%emt 0:04:30]} 24. cxd5 {[%emt 0:00:51]} cxd5 {[%emt 0:01:59]} 25. Nc2 {[%emt 0:03:15]} Be5 {[%emt 0:03:10]} 26. Bxc5 {[%emt 0:05:28]} Bxh2+ {[%emt 0:01:59]} 27. Kg2 {[%emt 0:01:22]} Nf6 {[%emt 0:05:51]} 28. Bd4 {[%emt 0:03:44]} Bc7 {[%emt 0:03:13]} 29. Bxf6 {[%emt 0:01:00]} Qxf6 {[%emt 0:03:54]} 30. Rxd5 {[%emt 0:02:36]} Rxd5 {[%emt 0:00:06]} 31. Qxd5 {[%emt 0:00:05]} h5 {[%emt 0:00:11]} 32. Ne3 {[%emt 0:01:05]} hxg4 {[%emt 0:04:05]} 33. Qa8+ {[%emt 0:01:20]} Kh7 {[%emt 0:00:16]} 34. Qe4 {[%emt 0:00:09]} Qg5 {[%emt 0:04:37]} 35. Qxg4 {[%emt 0:03:41]} Qd8 {[%emt 0:01:00]} 36. Kf3 {[%emt 0:00:49]} Kg8 {[%emt 0:01:00]} 37. Ke2 {[%emt 0:00:21]} Be5 {[%emt 0:00:36]} 38. Qc4 {[%emt 0:00:47]} Qf6 {[%emt 0:01:13]} 39. Qe4 {[%emt 0:02:09]} Bd6 {[%emt 0:00:27]} 40. Qa8+ {[%emt 0:01:15]} Bf8 {[%emt 0:00:18]} 41. a4 {[%emt 0:34:19]} Qb6 {[%emt 0:03:42]} 42. b4 {[%emt 0:00:00]} Qxb4 {[%emt 0:01:09]} 43. Qxa6 {[%emt 0:00:00]} Bc5 {[%emt 0:00:18]} 44. Qb5 {[%emt 0:00:00]} Qa3 {[%emt 0:03:21]} 45. a5 {[%emt 0:00:00]} Kh7 {[%emt 0:06:19]} 46. a6 {[%emt 0:00:00]} Qc3 {[%emt 0:01:51]} 47. Kf3 {[%emt 0:00:00]} Qd4 {[%emt 0:04:21]} 48. Qc4 {[%emt 0:00:00]} Qd6 {[%emt 0:00:23]} 49. Qd5 {[%emt 0:00:00]} Qb6 {[%emt 0:00:55]} 50. Nc4 {[%emt 0:00:00]} Qa7 {[%emt 0:03:22]} 51. Qb7 {[%emt 0:00:00]} Bxf2 {[%emt 0:00:08]} 52. Qxa7 {[%emt 0:00:00]} Bxa7 {[%emt 0:00:05]} 53. Ke4 {[%emt 0:00:00]} g5 {[%emt 0:03:25]} 54. Ne5 {[%emt 0:00:00]} Kg7 {[%emt 0:02:13]} 55. Nc6 {[%emt 0:00:00]} Bb6 {[%emt 0:00:24]} 56. Kf3 {[%emt 0:00:00]} 1-0

[Event "SVK ECo-C Extraliga 2021-22"]
[Site "Slovakia"]
[Date "2022.03.12"]
[Round "5.7"]
[White "Kravec, Patrik"]
[Black "Macko, Michal"]
[Result "1/2-1/2"]
[ECO "A06"]
[WhiteElo "2140"]
[BlackElo "2161"]
[Annotator "ChessBase"]
[PlyCount "84"]
[EventDate "2021.10.21"]
[EventType "team-tourn"]
[EventCountry "SVK"]
[SourceTitle "playchess.com"]
[Source "ChessBase"]
[SourceQuality "1"]
[TimeControl "40/5400+30:1800+30"]

1. g3 {[%emt 0:00:23]} d5 {[%emt 0:00:28]} 2. Nf3 {[%emt 0:01:10]} Nf6 {[%emt 0:00:31]} 3. Bg2 {[%emt 0:00:40]} e6 {[%emt 0:00:28]} 4. O-O {[%emt 0:00:46]} c5 {[%emt 0:00:13]} 5. d3 {[%emt 0:02:17]} Nc6 {[%emt 0:00:14]} 6. Nbd2 {[%emt 0:01:00]} Be7 {[%emt 0:00:45]} 7. e4 {[%emt 0:10:31]} Qc7 {[%emt 0:00:17]} 8. Re1 {[%emt 0:00:34]} b6 {[%emt 0:00:13]} 9. Nf1 {[%emt 0:02:56]} Bb7 {[%emt 0:00:44]} 10. e5 {[%emt 0:07:31]} Nd7 {[%emt 0:00:10]} 11. Bf4 {[%emt 0:00:05]} h6 {[%emt 0:00:53]} 12. h4 {[%emt 0:01:13]} O-O-O {[%emt 0:01:21]} 13. Ne3 {[%emt 0:08:54]} Rdg8 {[%emt 0:19:39]} 14. Nxd5 {[%emt 0:08:41]} exd5 {[%emt 0:00:19]} 15. e6 {[%emt 0:00:05]} Bd6 {[%emt 0:00:05]} 16. exd7+ {[%emt 0:02:23]} Qxd7 {[%emt 0:00:13]} 17. Bxd6 {[%emt 0:08:51]} Qxd6 {[%emt 0:00:14]} 18. d4 {[%emt 0:01:13]} g5 {[%emt 0:04:32]} 19. h5 {[%emt 0:08:16]} Re8 {[%emt 0:05:44]} 20. c3 {[%emt 0:03:57]} Kb8 {[%emt 0:14:21]} 21. Qd2 {[%emt 0:01:15]} Bc8 {[%emt 0:04:49]} 22. Ne5 {[%emt 0:04:07]} Nxe5 {[%emt 0:04:03]} 23. dxe5 {[%emt 0:00:52]} Rxe5 {[%emt 0:00:13]} 24. Rxe5 {[%emt 0:00:16]} Qxe5 {[%emt 0:00:05]} 25. Re1 {[%emt 0:00:59]} Qd6 {[%emt 0:01:22]} 26. Qxd5 {[%emt 0:02:58]} Qxd5 {[%emt 0:02:22]} 27. Bxd5 {[%emt 0:00:04]} f5 {[%emt 0:11:28]} 28. Re7 {[%emt 0:03:09]} Rd8 {[%emt 0:00:13]} 29. c4 {[%emt 0:00:41]} b5 {[%emt 0:00:24]} 30. b3 {[%emt 0:00:23]} Rd6 {[%emt 0:01:07]} 31. Rg7 {[%emt 0:03:56]} Bd7 {[%emt 0:03:06]} 32. f4 {[%emt 0:04:32]} g4 {[%emt 0:01:53]} 33. Kf2 {[%emt 0:03:02]} b4 {[%emt 0:05:55]} 34. Rg6 {[%emt 0:07:05]} Kc7 {[%emt 0:01:00]} 35. Rxd6 {[%emt 0:01:20]} Kxd6 {[%emt 0:00:16]} 36. Bf7 {[%emt 0:00:02]} a5 {[%emt 0:00:19]} 37. Ke3 {[%emt 0:00:06]} a4 {[%emt 0:05:56]} 38. Kd2 {[%emt 0:00:23]} a3 {[%emt 0:00:25]} 39. Kc2 {[%emt 0:01:25]} Bc6 {[%emt 0:00:29]} 40. Kc1 {[%emt 0:00:52]} Be4 {[%emt 0:00:14]} 41. Be8 {[%emt 0:31:03]} Ke7 {[%emt 0:30:16]} 42. Bg6 {[%emt 0:00:20]} Kf6 {[%emt 0:02:41]} 1/2-1/2

[Event "SVK ECo-C Extraliga 2021-22"]
[Site "Slovakia"]
[Date "2022.03.12"]
[Round "5.8"]
[White "Tropp, Oliver"]
[Black "Pcola, Jaroslav"]
[Result "1-0"]
[ECO "B36"]
[WhiteElo "2070"]
[BlackElo "2041"]
[Annotator "ChessBase"]
[PlyCount "33"]
[EventDate "2021.10.21"]
[EventType "team-tourn"]
[EventCountry "SVK"]
[SourceTitle "playchess.com"]
[Source "ChessBase"]
[SourceQuality "1"]
[TimeControl "40/5400+30:1800+30"]

1. c4 {[%emt 0:00:04]} Nf6 {[%emt 0:00:22]} 2. Nc3 {[%emt 0:00:18]} c5 {[%emt 0:01:11]} 3. Nf3 {[%emt 0:00:27]} Nc6 {[%emt 0:01:32]} 4. d4 {[%emt 0:02:04]} cxd4 {[%emt 0:01:11]} 5. Nxd4 {[%emt 0:00:09]} Nxd4 {[%emt 0:01:23]} 6. Qxd4 {[%emt 0:00:06]} g6 {[%emt 0:00:43]} 7. e4 {[%emt 0:00:41]} d6 {[%emt 0:00:34]} 8. Bg5 {[%emt 0:02:34]} Bg7 {[%emt 0:01:05]} 9. Be2 {[%emt 0:19:48]} O-O {[%emt 0:00:59]} 10. Qd2 {[%emt 0:00:55]} Qa5 {[%emt 0:04:00]} 11. O-O {[%emt 0:01:03]} Be6 {[%emt 0:03:41]} 12. Rac1 {[%emt 0:06:38]} Rfc8 {[%emt 0:02:45]} 13. b3 {[%emt 0:02:59]} Qd8 {[%emt 0:09:02]} 14. f4 {[%emt 0:04:50]} Qf8 {[%emt 0:14:33]} 15. f5 {[%emt 0:03:42]} Bd7 {[%emt 0:00:49]} 16. e5 {[%emt 0:01:24]} Ne8 {[%emt 0:05:10]} 17. f6 {[%emt 0:00:12]} 1-0

[Event "SVK ECo-C Extraliga 2021-22"]
[Site "Slovakia"]
[Date "2022.03.12"]
[Round "5.8"]
[White "Hecko, Dusan"]
[Black "Bombek, Peter"]
[Result "1-0"]
[ECO "A13"]
[WhiteElo "2030"]
[BlackElo "2090"]
[Annotator "ChessBase"]
[PlyCount "161"]
[EventDate "2021.10.21"]
[EventType "team-tourn"]
[EventCountry "SVK"]
[SourceTitle "playchess.com"]
[Source "ChessBase"]
[SourceQuality "1"]
[TimeControl "40/5400+30:1800+30"]

1. c4 {[%emt 0:00:16]} e6 {[%emt 0:00:05]} 2. Nc3 {[%emt 0:00:45]} d5 {[%emt 0:00:05]} 3. e3 {[%emt 0:02:44]} c5 {[%emt 0:00:39]} 4. d4 {[%emt 0:01:21]} Nf6 {[%emt 0:00:39]} 5. Nf3 {[%emt 0:00:42]} Nc6 {[%emt 0:00:06]} 6. Be2 {[%emt 0:08:34]} a6 {[%emt 0:03:00]} 7. O-O {[%emt 0:02:16]} dxc4 {[%emt 0:00:10]} 8. dxc5 {[%emt 0:02:48]} Qxd1 {[%emt 0:02:01]} 9. Rxd1 {[%emt 0:00:18]} Bxc5 {[%emt 0:01:13]} 10. Bxc4 {[%emt 0:01:14]} b5 {[%emt 0:00:39]} 11. Be2 {[%emt 0:03:21]} Bb7 {[%emt 0:00:21]} 12. b3 {[%emt 0:01:36]} Ke7 {[%emt 0:02:20]} 13. Bb2 {[%emt 0:01:10]} Rhd8 {[%emt 0:02:20]} 14. Kf1 {[%emt 0:06:24]} Rd6 {[%emt 0:06:52]} 15. Rxd6 {[%emt 0:04:50]} Bxd6 {[%emt 0:01:10]} 16. Rd1 {[%emt 0:02:21]} Rc8 {[%emt 0:05:56]} 17. h3 {[%emt 0:13:12]} h6 {[%emt 0:05:18]} 18. Ne1 {[%emt 0:04:54]} Nd8 {[%emt 0:08:51]} 19. Rc1 {[%emt 0:07:15]} g6 {[%emt 0:05:08]} 20. Bf3 {[%emt 0:00:40]} Rc7 {[%emt 0:06:49]} 21. Bxb7 {[%emt 0:01:33]} Nxb7 {[%emt 0:01:20]} 22. Nd3 {[%emt 0:00:26]} Nc5 {[%emt 0:05:03]} 23. Nxc5 {[%emt 0:02:07]} Bxc5 {[%emt 0:01:43]} 24. Ke2 {[%emt 0:03:02]} Bb4 {[%emt 0:08:58]} 25. Kd3 {[%emt 0:03:39]} Rd7+ {[%emt 0:01:23]} 26. Ke2 {[%emt 0:00:54]} Nd5 {[%emt 0:03:52]} 27. Nxd5+ {[%emt 0:01:19]} Rxd5 {[%emt 0:00:34]} 28. Rc2 {[%emt 0:02:48]} Kd6 {[%emt 0:07:42]} 29. Bg7 {[%emt 0:03:35]} Ba5 {[%emt 0:03:58]} 30. Bxh6 {[%emt 0:01:50]} Kd7 {[%emt 0:02:52]} 31. e4 {[%emt 0:01:30]} Rh5 {[%emt 0:05:22]} 32. Be3 {[%emt 0:01:03]} f5 {[%emt 0:04:17]} 33. Kd3 {[%emt 0:02:17]} Bc7 {[%emt 0:01:27]} 34. f3 {[%emt 0:02:28]} Rh4 {[%emt 0:01:48]} 35. Bf2 {[%emt 0:02:07]} fxe4+ {[%emt 0:00:31]} 36. fxe4 {[%emt 0:00:15]} Rh5 {[%emt 0:00:09]} 37. Bd4 {[%emt 0:01:26]} Bg3 {[%emt 0:02:05]} 38. Rc5 {[%emt 0:03:09]} Rxc5 {[%emt 0:01:10]} 39. Bxc5 {[%emt 0:00:09]} Kc6 {[%emt 0:00:17]} 40. Bd4 {[%emt 0:00:17]} Kd6 {[%emt 0:00:23]} 41. Ke3 {[%emt 0:30:23]} e5 {[%emt 0:05:01]} 42. Ba7 {[%emt 0:00:00]} Ke6 {[%emt 0:07:23]} 43. Kf3 {[%emt 0:00:00]} Be1 {[%emt 0:00:29]} 44. Kg4 {[%emt 0:00:00]} Kf6 {[%emt 0:01:21]} 45. h4 {[%emt 0:00:00]} Bd2 {[%emt 0:00:57]} 46. Bb6 {[%emt 0:00:00]} Kg7 {[%emt 0:00:32]} 47. Bc7 {[%emt 0:00:00]} Bc3 {[%emt 0:00:18]} 48. h5 {[%emt 0:00:00]} Kh6 {[%emt 0:00:17]} 49. hxg6 {[%emt 0:00:00]} Kxg6 {[%emt 0:00:02]} 50. Bb6 {[%emt 0:00:00]} Bb2 {[%emt 0:02:12]} 51. Kf3 {[%emt 0:00:00]} Bc1 {[%emt 0:03:41]} 52. Bd8 {[%emt 0:00:00]} Kh5 {[%emt 0:02:13]} 53. Ba5 {[%emt 0:00:00]} Bb2 {[%emt 0:00:23]} 54. Bd2 {[%emt 0:00:00]} Bd4 {[%emt 0:00:35]} 55. a4 {[%emt 0:00:00]} bxa4 {[%emt 0:05:37]} 56. bxa4 {[%emt 0:00:00]} Bb2 {[%emt 0:00:21]} 57. Bb4 {[%emt 0:00:00]} Ba1 {[%emt 0:02:15]} 58. Be7 {[%emt 0:00:00]} Bb2 {[%emt 0:00:24]} 59. g4+ {[%emt 0:00:00]} Kg6 {[%emt 0:00:05]} 60. Bh4 {[%emt 0:00:00]} Bc1 {[%emt 0:01:03]} 61. Bg3 {[%emt 0:00:00]} Bb2 {[%emt 0:00:10]} 62. Be1 {[%emt 0:00:00]} Bd4 {[%emt 0:00:19]} 63. Bd2 {[%emt 0:00:00]} Bc5 {[%emt 0:01:35]} 64. Ke2 {[%emt 0:00:00]} Be7 {[%emt 0:03:32]} 65. Kd3 {[%emt 0:00:00]} Kf6 {[%emt 0:00:29]} 66. Kc4 {[%emt 0:00:00]} Ke6 {[%emt 0:00:05]} 67. Bh6 {[%emt 0:00:00]} Ba3 {[%emt 0:01:11]} 68. Be3 {[%emt 0:00:00]} Be7 {[%emt 0:00:16]} 69. g5 {[%emt 0:00:00]} Ba3 {[%emt 0:00:52]} 70. Bb6 {[%emt 0:00:00]} Bc1 {[%emt 0:01:32]} 71. Bd8 {[%emt 0:00:00]} Ba3 {[%emt 0:01:10]} 72. g6 {[%emt 0:00:00]} Bf8 {[%emt 0:00:11]} 73. Bg5 {[%emt 0:00:00]} Ba3 {[%emt 0:00:57]} 74. Kd3 {[%emt 0:00:00]} Bf8 {[%emt 0:00:40]} 75. Ke2 {[%emt 0:00:00]} Bg7 {[%emt 0:00:36]} 76. Kf3 {[%emt 0:00:00]} Bf6 {[%emt 0:00:30]} 77. Kg4 {[%emt 0:00:00]} Bg7 {[%emt 0:00:11]} 78. Kh5 {[%emt 0:00:35]} Bf8 {[%emt 0:00:30]} 79. Bh6 {[%emt 0:00:29]} Be7 {[%emt 0:00:15]} 80. Bg7 {[%emt 0:00:14]} Bb4 {[%emt 0:01:01]} 81. Bxe5 {[%emt 0:01:20]} 1-0

[Event "SVK ECo-C Extraliga 2021-22"]
[Site "Slovakia"]
[Date "2022.03.13"]
[Round "6.6"]
[White "Halak, Miklos"]
[Black "Varga, Zoltan"]
[Result "0-1"]
[ECO "B02"]
[WhiteElo "2251"]
[BlackElo "2390"]
[Annotator "RC"]
[PlyCount "106"]
[EventDate "2021.10.21"]
[EventType "team-tourn"]
[EventCountry "SVK"]
[SourceTitle "playchess.com"]
[Source "ChessBase"]
[SourceQuality "1"]
[TimeControl "40/5400+30:1800+30"]

1. e4 {[%emt 0:00:17]} Nf6 {[%emt 0:00:41]} 2. Nc3 {[%emt 0:00:24]} d5 {[%emt 0:00:14]} 3. e5 {[%emt 0:00:12]} Nfd7 {[%emt 0:00:05]} 4. d4 {[%emt 0:00:06]} c5 {[%emt 0:00:11]} 5. f4 {[%emt 0:00:18]} cxd4 {[%emt 0:00:14]} 6. Nb5 {[%emt 0:00:09]} Nc6 {[%emt 0:00:55]} 7. Nf3 {[%emt 0:00:33]} Qa5+ {[%emt 0:00:38]} 8. Qd2 {[%emt 0:07:46]} Qb6 {[%emt 0:00:32]} 9. Nbxd4 {[%emt 0:01:31]} Nc5 {[%emt 0:03:00]} 10. c3 {[%emt 0:08:32]} Bg4 {[%emt 0:01:06]} 11. Nxc6 {[%emt 0:03:31]} bxc6 {[%emt 0:06:35]} 12. Qf2 {[%emt 0:04:11]} Ne4 {[%emt 0:01:23]} 13. Qxb6 {[%emt 0:02:50]} axb6 {[%emt 0:00:02]} 14. Nd4 {[%emt 0:06:33]} Bd7 {[%emt 0:07:30]} 15. Be3 {[%emt 0:05:40]} e6 {[%emt 0:00:49]} 16. Nb3 {[%emt 0:04:31]} c5 {[%emt 0:01:36]} 17. Nd2 {[%emt 0:10:42]} f5 {[%emt 0:00:38]} 18. exf6 {[%emt 0:02:20]} Nxf6 {[%emt 0:00:21]} 19. Be2 {[%emt 0:00:55]} Bd6 {[%emt 0:01:02]} 20. O-O {[%emt 0:01:28]} O-O {[%emt 0:00:06]} 21. g3 {[%emt 0:05:26]} Rfe8 {[%emt 0:13:23]} 22. Bf3 {[%emt 0:02:45]} Ra4 {[%emt 0:00:33]} 23. a3 {[%emt 0:02:32]} e5 {[%emt 0:10:06]} 24. fxe5 {[%emt 0:03:42]} Bxe5 {[%emt 0:00:09]} 25. Rae1 {[%emt 0:05:32]} Bb5 {[%emt 0:00:33]} 26. Be2 {[%emt 0:04:07]} Bxe2 {[%emt 0:07:54]} 27. Rxe2 {[%emt 0:00:05]} d4 {[%emt 0:00:04]} 28. Bf4 {[%emt 0:02:03]} Bxf4 {[%emt 0:02:28]} 29. Rxe8+ {[%emt 0:00:11]} Nxe8 {[%emt 0:00:02]} 30. Rxf4 {[%emt 0:00:27]} dxc3 {[%emt 0:00:08]} 31. bxc3 {[%emt 0:00:23]} Rxa3 {[%emt 0:00:05]} 32. Nc4 {[%emt 0:02:13]} Rb3 {[%emt 0:00:47]} 33. Ne5 {[%emt 0:01:39]} Nf6 {[%emt 0:10:20]} 34. Ra4 {[%emt 0:01:03]} h6 {[%emt 0:00:07]} 35. Ra8+ {[%emt 0:01:50]} Kh7 {[%emt 0:00:06]} 36. c4 {[%emt 0:01:43]} Re3 {[%emt 0:00:26]} 37. Nf7 {[%emt 0:01:16]} Re2 {[%emt 0:02:17]} 38. Rb8 {[%emt 0:00:40]} Ng4 {[%emt 0:03:09]} 39. h4 {[%emt 0:01:40]} Kg6 {[%emt 0:05:51]} 40. Nd6 {[%emt 0:01:51]} Rb2 {[%emt 0:00:17]} 41. Rb7 {[%emt 0:34:50]} h5 {[%emt 0:32:58]} 42. Ne8 {[%emt 0:01:24]} Ne5 {[%emt 0:05:15]} 43. Rxg7+ {[%emt 0:00:58]} Kh6 {[%emt 0:00:20]} 44. Re7 {[%emt 0:00:00]} Nxc4 {[%emt 0:00:00]} 45. Re6+ {[%emt 0:00:00]} Kh7 {[%emt 0:00:00]} 46. Re7+ {[%emt 0:00:00]} Kg6 {[%emt 0:00:00]} 47. Rg7+ {[%emt 0:00:00]} Kh6 {[%emt 0:00:00]} 48. Rg5 {[%emt 0:00:00]} Nd2 {[%emt 0:00:00]} 49. Rg8 {[%emt 0:00:00]} Nf3+ {[%emt 0:00:00]} 50. Kf1 {[%emt 0:00:00]} c4 {[%emt 0:00:00]} 51. Nf6 {[%emt 0:00:00]} c3 {[%emt 0:00:00]} 52. g4 {[%emt 0:00:00]} Nh2+ {[%emt 0:00:00]} 53. Ke1 {[%emt 0:00:00]} Nxg4 {[%emt 0:00:00]} 0-1

[Event "SVK ECo-C Extraliga 2021-22"]
[Site "Slovakia"]
[Date "2022.03.13"]
[Round "6.7"]
[White "Macko, Michal"]
[Black "Jurcisin, Imrich"]
[Result "1-0"]
[ECO "B01"]
[WhiteElo "2161"]
[BlackElo "2076"]
[Annotator "NA"]
[PlyCount "67"]
[EventDate "2021.10.21"]
[EventType "team-tourn"]
[EventCountry "SVK"]
[SourceTitle "playchess.com"]
[Source "ChessBase"]
[SourceQuality "1"]
[TimeControl "40/5400+30:1800+30"]

1. e4 {[%emt 0:00:13]} d5 {[%emt 0:08:07]} 2. exd5 {[%emt 0:00:10]} Nf6 {[%emt 0:00:04]} 3. d4 {[%emt 0:00:09]} Nxd5 {[%emt 0:00:04]} 4. c4 {[%emt 0:00:06]} Nb4 {[%emt 0:00:09]} 5. a3 {[%emt 0:01:21]} N4c6 {[%emt 0:00:55]} 6. d5 {[%emt 0:05:28]} Ne5 {[%emt 0:02:00]} 7. Bf4 {[%emt 0:02:38]} Ng6 {[%emt 0:04:38]} 8. Be3 {[%emt 0:00:11]} e5 {[%emt 0:00:27]} 9. Be2 {[%emt 0:01:52]} Nd7 {[%emt 0:01:12]} 10. Nf3 {[%emt 0:00:22]} Bd6 {[%emt 0:03:50]} 11. Nc3 {[%emt 0:02:35]} O-O {[%emt 0:01:01]} 12. b4 {[%emt 0:00:34]} b6 {[%emt 0:00:51]} 13. O-O {[%emt 0:17:52]} Nh4 {[%emt 0:07:37]} 14. Nxh4 {[%emt 0:11:49]} Qxh4 {[%emt 0:02:26]} 15. f3 {[%emt 0:00:06]} f5 {[%emt 0:03:06]} 16. Qd2 {[%emt 0:05:54]} e4 {[%emt 0:11:39]} 17. f4 {[%emt 0:00:18]} g5 {[%emt 0:06:22]} 18. g3 {[%emt 0:02:02]} Qh3 {[%emt 0:02:21]} 19. Rf2 {[%emt 0:00:23]} gxf4 {[%emt 0:09:49]} 20. gxf4 {[%emt 0:03:52]} Rf6 {[%emt 0:00:21]} 21. Bf1 {[%emt 0:10:06]} Rg6+ {[%emt 0:01:24]} 22. Kh1 {[%emt 0:01:08]} Qh4 {[%emt 0:04:02]} 23. Nb5 {[%emt 0:04:26]} Nf6 {[%emt 0:02:31]} 24. c5 {[%emt 0:00:13]} Nh5 {[%emt 0:09:20]} 25. Bg2 {[%emt 0:03:46]} Ba6 {[%emt 0:12:16]} 26. cxd6 {[%emt 0:07:04]} Bxb5 {[%emt 0:01:04]} 27. dxc7 {[%emt 0:02:02]} Rh6 {[%emt 0:04:45]} 28. Kg1 {[%emt 0:00:20]} Ng3 {[%emt 0:01:23]} 29. h3 {[%emt 0:00:17]} Rd6 {[%emt 0:00:21]} 30. Bc5 {[%emt 0:10:19]} bxc5 {[%emt 0:00:34]} 31. bxc5 {[%emt 0:00:04]} Rd7 {[%emt 0:00:45]} 32. d6 {[%emt 0:00:16]} Qf6 {[%emt 0:00:31]} 33. Qd5+ {[%emt 0:00:26]} Qf7 {[%emt 0:00:32]} 34. Qxa8+ {[%emt 0:00:07]} 1-0

[Event "SVK ECo-C Extraliga 2021-22"]
[Site "Slovakia"]
[Date "2022.03.13"]
[Round "6.8"]
[White "Veres, Andrej"]
[Black "Machata, Martin"]
[Result "1/2-1/2"]
[ECO "A48"]
[WhiteElo "2185"]
[BlackElo "2213"]
[Annotator "ChessBase"]
[PlyCount "43"]
[EventDate "2021.10.21"]
[EventType "team-tourn"]
[EventCountry "SVK"]
[SourceTitle "playchess.com"]
[Source "ChessBase"]
[SourceQuality "1"]
[TimeControl "40/5400+30:1800+30"]

1. d4 {[%emt 0:00:08]} Nf6 {[%emt 0:00:18]} 2. Nf3 {[%emt 0:00:34]} g6 {[%emt 0:00:31]} 3. c4 {[%emt 0:04:30]} c5 {[%emt 0:00:58]} 4. d5 {[%emt 0:00:48]} b5 {[%emt 0:00:03]} 5. cxb5 {[%emt 0:03:29]} a6 {[%emt 0:00:03]} 6. b6 {[%emt 0:02:57]} Qxb6 {[%emt 0:00:56]} 7. Nc3 {[%emt 0:01:44]} d6 {[%emt 0:04:35]} 8. g3 {[%emt 0:01:22]} Bg7 {[%emt 0:01:08]} 9. Bg2 {[%emt 0:01:06]} a5 {[%emt 0:06:44]} 10. Nd2 {[%emt 0:03:46]} Ba6 {[%emt 0:07:55]} 11. Rb1 {[%emt 0:10:12]} Nbd7 {[%emt 0:01:42]} 12. b3 {[%emt 0:09:58]} O-O {[%emt 0:05:57]} 13. Qc2 {[%emt 0:05:10]} Rfb8 {[%emt 0:04:19]} 14. O-O {[%emt 0:03:58]} Ne5 {[%emt 0:08:54]} 15. Nc4 {[%emt 0:07:30]} Nxc4 {[%emt 0:08:53]} 16. bxc4 {[%emt 0:00:12]} Qc7 {[%emt 0:05:04]} 17. Nb5 {[%emt 0:11:45]} Bxb5 {[%emt 0:00:30]} 18. Rxb5 {[%emt 0:00:30]} Rxb5 {[%emt 0:04:00]} 19. cxb5 {[%emt 0:00:10]} a4 {[%emt 0:01:11]} 20. Bg5 {[%emt 0:01:11]} h6 {[%emt 0:05:40]} 21. Bxf6 {[%emt 0:02:00]} Bxf6 {[%emt 0:00:30]} 22. Rb1 {[%emt 0:06:46]} 1/2-1/2

[Event "SVK ECo-C Extraliga 2021-22"]
[Site "Slovakia"]
[Date "2022.03.13"]
[Round "6.8"]
[White "Sankova, Stella"]
[Black "Gzib, David"]
[Result "1/2-1/2"]
[ECO "B51"]
[WhiteElo "2054"]
[BlackElo "2030"]
[Annotator "NA"]
[PlyCount "73"]
[EventDate "2021.10.21"]
[EventType "team-tourn"]
[EventCountry "SVK"]
[SourceTitle "playchess.com"]
[Source "ChessBase"]
[SourceQuality "1"]
[TimeControl "40/5400+30:1800+30"]

1. e4 c5 2. Nf3 d6 3. Bb5+ Nd7 4. d4 cxd4 5. Qxd4 a6 6. Bxd7+ Bxd7 7. c4 Nf6 8. Bg5 h6 9. Bh4 Qa5+ 10. Nc3 g5 11. Bg3 Bg7 12. Qd3 Bc6 13. O-O O-O 14. Nd4 Nd7 15. Rfd1 Qb6 16. Nf5 Rfe8 17. Qe2 Nf6 18. h4 Bd7 19. Ne3 Bc6 20. Nf5 {[%emt 1:16:46]} Bd7 {[%emt 1:11:44]} 21. Ne3 {[%emt 0:02:11]} Bc6 {[%emt 0:02:39]} 22. e5 {[%emt 0:05:52]} dxe5 {[%emt 0:04:39]} 23. Bxe5 {[%emt 0:00:06]} Qa5 {[%emt 0:04:44]} 24. Ned5 {[%emt 0:04:23]} Nxd5 {[%emt 0:03:34]} 25. Nxd5 {[%emt 0:01:48]} e6 {[%emt 0:06:15]} 26. Nf6+ {[%emt 0:00:30]} Bxf6 {[%emt 0:00:30]} 27. Bxf6 {[%emt 0:00:30]} Qf5 {[%emt 0:00:47]} 28. hxg5 {[%emt 0:01:13]} hxg5 {[%emt 0:00:37]} 29. Qe5 {[%emt 0:04:13]} Qxe5 {[%emt 0:02:16]} 30. Bxe5 {[%emt 0:00:01]} Kh7 {[%emt 0:01:16]} 31. f3 {[%emt 0:04:17]} Kg6 {[%emt 0:01:02]} 32. Kf2 {[%emt 0:01:13]} Rad8 {[%emt 0:01:00]} 33. Bc7 {[%emt 0:01:11]} Rxd1 {[%emt 0:00:35]} 34. Rxd1 {[%emt 0:00:01]} Re7 {[%emt 0:01:33]} 35. Bd6 {[%emt 0:01:39]} Rd7 {[%emt 0:01:16]} 36. Ke3 {[%emt 0:00:41]} f6 {[%emt 0:02:00]} 37. b3 {[%emt 0:01:47]} 1/2-1/2